bitfinex/quotes_SOLUSD_20260226
["timestamp","ask_amount","ask_price","bid_price","bid_amount"]
[1772108177262,1.95310582,87.373,87.35,3.62715983]
[1772108177777,5.36086188,87.379,87.36,3.62715983]
[1772108177984,1.95310582,87.379,87.36,3.62715983]
[1772108179564,5.36086188,87.392,87.361,2.03358141]
[1772108179565,11.44452837,87.378,87.361,2.03358141]
[1772108179762,1.95310582,87.377,87.353,2.03358141]
[1772108179958,1.95310582,87.377,87.36,3.62715983]
[1772108182167,1.95310582,87.375,87.36,3.62715983]
[1772108184178,1.95310582,87.373,87.36,3.62715983]
[1772108184579,1.95310582,87.373,87.34,3.62715983]
[1772108184778,1.95310582,87.373,87.32,5.66074124]
[1772108184779,1.95310582,87.365,87.32,2.03358141]
[1772108184983,1.95310582,87.353,87.32,3.62715983]
[1772108185179,1.95310582,87.344,87.31,5.66074124]
[1772108187089,1.95054646,87.342,87.32,3.62715983]
[1772108187272,1.95054646,87.342,87.321,1.94011194]
[1772108188186,11.44911441,87.343,87.33,3.62715983]
[1772108188791,1.95054646,87.342,87.307,1.94011194]
[1772108189083,11.44937658,87.341,87.31,3.62715983]
[1772108189288,1.95054646,87.34,87.31,3.62715983]
[1772108190571,1.95054646,87.338,87.31,3.62715983]
[1772108191188,1.95054646,87.324,87.29,3.62715983]
[1772108191389,1.95054646,87.319,87.281,1.94011194]
[1772108191592,1.95054646,87.319,87.29,3.62715983]
[1772108192095,5.36086188,87.316,87.29,3.62715983]
[1772108192270,1.95054646,87.313,87.28,5.56727177]
[1772108192972,1.95054646,87.311,87.28,5.56727177]
[1772108194065,1.95054646,87.305,87.28,3.62715983]
[1772108194266,1.95054646,87.305,87.267,11.45901558]
[1772108194267,1.95054646,87.303,87.27,3.62715983]
[1772108194766,1.95054646,87.303,87.271,1.94011194]
[1772108194967,1.95054646,87.303,87.252,28.65241103]
[1772108194968,1.95054646,87.301,87.28,3.62715983]
[1772108195265,11.45395584,87.307,87.281,1.94011194]
[1772108197169,11.45395584,87.307,87.248,3.69383402]
[1772108197170,1.95962224,87.304,87.27,3.62715983]
[1772108197865,1.95962224,87.294,87.262,1.92174748]
[1772108198070,1.95962224,87.294,87.26,5.54890731]
[1772108198480,1.95962224,87.294,87.239,28.65664944]
[1772108198481,1.95962224,87.294,87.27,3.62715983]
[1772108198884,5.36086188,87.305,87.28,3.62715983]
[1772108199083,45.79018495,87.355,87.29,3.62715983]
[1772108199084,1.95962224,87.313,87.29,3.62715983]
[1772108200079,1.95962224,87.313,87.29,5.54890731]
[1772108200593,1.95962224,87.313,87.283,1.92174748]
[1772108201283,1.95962224,87.311,87.28,3.62715983]
[1772108201669,1.95962224,87.311,87.28,5.54890731]
[1772108201883,1.95962224,87.311,87.281,1.92174748]
[1772108203393,1.95962224,87.309,87.281,1.92174748]
[1772108203773,1.95962224,87.309,87.283,1.92174748]
[1772108204683,13.41162118,87.321,87.291,1.92174748]
[1772108205187,1.95962224,87.32,87.291,1.92174748]
[1772108205692,13.41188348,87.319,87.291,1.92174748]
[1772108205895,13.41188348,87.319,87.3,3.62715983]
[1772108206502,5.36086188,87.333,87.3,3.62715983]
[1772108206503,1.95962224,87.33,87.304,1.92174748]
[1772108206798,1.95962224,87.33,87.3,3.62715983]
[1772108207172,1.95962224,87.33,87.3,5.54890731]
[1772108207583,1.95962224,87.33,87.301,1.92174748]
[1772108207792,1.95962224,87.328,87.301,1.92174748]
[1772108207972,1.95962224,87.328,87.31,3.62715983]
[1772108209592,13.40997086,87.334,87.311,1.92174748]
[1772108209783,1.95962224,87.333,87.311,1.92174748]
[1772108210386,40.06823046,87.351,87.321,1.92174748]
[1772108210387,11.44806584,87.351,87.321,1.92174748]
[1772108210583,11.44762285,87.355,87.34,1.576e-05]
[1772108211796,1.95962224,87.361,87.34,1.576e-05]
[1772108213695,40.06347741,87.362,87.31,3.62715983]
[1772108213696,5.36086188,87.344,87.31,3.62715983]
[1772108213997,45.78103294,87.373,87.31,3.62715983]
[1772108213998,1.98526317,87.341,87.31,3.62715983]
[1772108214387,1.98526317,87.341,87.32,3.62715983]
[1772108214981,11.44924549,87.342,87.32,3.62715983]
[1772108215582,1.98526317,87.344,87.32,3.62715983]
[1772108217898,11.44911441,87.343,87.32,3.62715983]
[1772108218397,11.44911441,87.343,87.33,3.62715983]
[1772108219801,11.44911441,87.343,87.321,0.05834881]
[1772108220508,1.98526317,87.347,87.33,3.62715983]
[1772108223315,11.44872117,87.346,87.33,3.62715983]
[1772108223691,28.61566548,87.365,87.34,3.62715983]
[1772108223899,16.80722422,87.364,87.34,3.62715983]
[1772108224810,13.45582261,87.364,87.34,3.62715983]
[1772108224996,13.45582261,87.364,87.35,3.62715983]
[1772108225611,2.00946027,87.373,87.35,3.62715983]
[1772108225989,2.00946027,87.373,87.321,28.6298581]
[1772108225990,2.00946027,87.371,87.33,3.62715983]
[1772108226194,5.36086188,87.372,87.33,3.62715983]
[1772108226195,2.00946027,87.363,87.33,3.62715983]
[1772108226496,2.00946027,87.363,87.288,45.82505586]
[1772108226497,2.00946027,87.363,87.32,3.62715983]
[1772108229210,40.06318536,87.362,87.33,3.62715983]
[1772108229417,2.00946027,87.361,87.33,3.62715983]
[1772108230595,2.00946027,87.359,87.33,3.62715983]
[1772108230811,40.06410255,87.36,87.304,0.6]
[1772108230812,2.00946027,87.353,87.32,3.62715983]
[1772108231816,2.00946027,87.349,87.31,3.62715983]
[1772108232318,2.00946027,87.349,87.305,11.4540977]
[1772108232319,2.00946027,87.349,87.32,3.62715983]
[1772108233612,2.00946027,87.347,87.32,3.62715983]
[1772108234197,40.06960662,87.348,87.274,28.64541558]
[1772108234198,7.37032215,87.339,87.274,28.64541558]
[1772108234403,5.36086188,87.342,87.274,28.64541558]
[1772108234404,2.00946027,87.329,87.29,3.62715983]
[1772108235194,2.00946027,87.329,87.3,3.62715983]
[1772108235414,2.00946027,87.325,87.274,11.45816623]
[1772108235613,3.62715983,87.33,87.29,3.62715983]
[1772108235614,2.00946027,87.323,87.29,3.62715983]
[1772108236524,2.00946027,87.323,87.269,11.45882272]
[1772108236525,2.00946027,87.321,87.265,28.64823509]
[1772108236815,2.00946027,87.315,87.28,3.62715983]
[1772108237408,5.36086188,87.314,87.28,3.62715983]
[1772108237612,2.00946027,87.305,87.28,3.62715983]
[1772108238711,2.00946027,87.303,87.28,3.62715983]
[1772108239197,2.00946027,87.303,87.266,11.45914272]
[1772108239400,2.00946027,87.303,87.28,3.63284384]
[1772108240200,5.36086188,87.314,87.28,3.63284384]
[1772108240201,2.00946027,87.301,87.28,3.63284384]
[1772108243516,11.45475372,87.3,87.28,3.63284384]
[1772108244724,2.00946027,87.3,87.28,3.63284384]
[1772108246227,11.45488493,87.299,87.28,3.63284384]
[1772108246427,2.00946027,87.298,87.28,3.63284384]
[1772108248032,2.00946027,87.296,87.26,3.63284384]
[1772108248325,2.00946027,87.294,87.261,11.45987325]
[1772108248522,2.00946027,87.294,87.27,3.63284384]
[1772108249212,2.00946027,87.294,87.26,3.63284384]
[1772108249526,2.00946027,87.294,87.27,3.63284384]
[1772108250030,2.00946027,87.292,87.26,3.63284384]
[1772108252017,2.00946027,87.288,87.25,3.63284384]
[1772108252208,43.72907478,87.29,87.22,0.2]
[1772108252209,2.00946027,87.28,87.22,0.2]
[1772108252405,2.00946027,87.28,87.24,3.63284384]
[1772108252406,2.00946027,87.276,87.24,3.63284384]
[1772108253029,2.00946027,87.276,87.25,3.63284384]
[1772108254228,2.00946027,87.274,87.24,3.63284384]
[1772108254430,2.00946027,87.274,87.25,3.63284384]
[1772108255429,2.00946027,87.285,87.26,3.63284384]
[1772108255743,2.00946027,87.319,87.27,3.63284384]
[1772108256029,2.00946027,87.315,87.29,3.63284384]
[1772108256539,5.98744416,87.374,87.243,3.69383402]
[1772108256540,2.00946027,87.333,87.3,3.63284384]
[1772108256711,2.00946027,87.333,87.32,3.63284384]
[1772108256909,2.00946027,87.348,87.32,3.63284384]
[1772108257231,2.00946027,87.347,87.32,3.63284384]
[1772108258441,2.00946027,87.345,87.32,3.63284384]
[1772108259735,2.00946027,87.345,87.281,3.69383402]
[1772108259929,2.00946027,87.345,87.31,3.63284384]
[1772108260837,2.00946027,87.343,87.31,3.63284384]
[1772108261135,2.00946027,87.337,87.3,3.63284384]
[1772108261928,2.00946027,87.337,87.31,3.63284384]
[1772108262832,40.07511221,87.336,87.31,3.63284384]
[1772108263012,2.00946027,87.335,87.278,3.69383402]
[1772108263217,2.00946027,87.335,87.3,3.63284384]
[1772108265529,2.00946027,87.333,87.31,3.63284384]
[1772108267038,2.00946027,87.327,87.29,3.63284384]
[1772108267939,2.00946027,87.325,87.29,3.63284384]
[1772108270229,11.45160551,87.324,87.3,3.63284384]
[1772108272849,2.00946027,87.323,87.3,3.63284384]
[1772108274959,11.45186779,87.322,87.3,3.63284384]
[1772108275244,11.45016785,87.335,87.31,3.63284384]
[1772108275449,11.44845903,87.348,87.32,3.63284384]
[1772108275650,11.44845903,87.348,87.33,3.63284384]
[1772108276238,11.44845903,87.348,87.32,3.63284384]
[1772108276448,13.4579193,87.348,87.32,3.63284384]
[1772108276841,2.00946027,87.347,87.32,3.63284384]
[1772108277041,2.00946027,87.345,87.32,3.63284384]
[1772108278149,11.44872117,87.346,87.33,3.63284384]
[1772108278335,9.78757446,87.346,87.33,3.63284384]
[1772108279749,13.45752611,87.351,87.33,3.63284384]
[1772108279937,2.00946027,87.35,87.33,3.63284384]
[1772108280132,11.44806584,87.351,87.33,3.63284384]
[1772108280337,11.44806584,87.351,87.287,3.69383402]
[1772108280338,2.00946027,87.371,87.34,3.63284384]
[1772108280536,2.00946027,87.371,87.35,3.63284384]
[1772108281455,13.45500007,87.371,87.35,3.63284384]
[1772108281850,11.4455398,87.371,87.35,3.63284384]
[1772108283558,11.443561,87.386,87.36,3.63284384]
[1772108283852,2.00946027,87.385,87.37,3.63284384]
[1772108284068,11.443561,87.386,87.37,3.63284384]
[1772108284842,2.00946027,87.387,87.37,3.63284384]
[1772108285863,2.00946027,87.397,87.36,3.63284384]
[1772108286863,2.00946027,87.395,87.37,3.63284384]
[1772108288759,0.1,87.4,87.38,3.63284384]
[1772108288760,11.44243311,87.394,87.38,3.63284384]
[1772108289063,3.63284384,87.42,87.38,3.63284384]
[1772108289064,2.00946027,87.415,87.38,3.63284384]
[1772108289244,11.4392969,87.418,87.41,3.63284384]
[1772108289642,11.4392969,87.418,87.4,3.63284384]
[1772108290046,13.44875717,87.418,87.4,3.63284384]
[1772108290276,2.00946027,87.417,87.4,3.63284384]
[1772108290952,13.44901366,87.416,87.4,3.63284384]
[1772108291157,12.94901366,87.416,87.4,3.63284384]
[1772108291366,2.00946027,87.415,87.4,3.63284384]
[1772108292566,11.43981513,87.414,87.4,3.63284384]
[1772108293366,5.36086188,87.436,87.367,3.69383402]
[1772108293367,5.36086188,87.436,87.392,40.04938203]
[1772108293571,164.9,87.471,87.377,3.69383402]
[1772108293572,2.00946027,87.434,87.377,3.69383402]
[1772108293870,2.00946027,87.434,87.4,3.63284384]
[1772108294072,2.00946027,87.434,87.41,3.63284384]
[1772108294578,11.43706753,87.435,87.42,3.63284384]
[1772108294747,28.5892853,87.446,87.42,3.63284384]
[1772108294748,2.00946027,87.439,87.42,3.63284384]
[1772108295449,2.00946027,87.439,87.378,0.6]
[1772108295450,2.00946027,87.437,87.378,4.29383402]
[1772108295759,2.00946027,87.437,87.4,3.63284384]
[1772108296975,5.36086188,87.435,87.38,11.44426642]
[1772108297283,2.00946027,87.427,87.39,3.63284384]
[1772108298455,11.43693673,87.436,87.42,3.63284384]
[1772108298659,2.00946027,87.435,87.41,3.63284384]
[1772108299172,2.00946027,87.433,87.41,3.63284384]
[1772108299360,2.00946027,87.433,87.41,3.62206749]
[1772108299556,2.00946027,87.433,87.38,28.61066605]
[1772108299871,2.00946027,87.433,87.4,3.62206749]
[1772108300664,2.00946027,87.426,87.39,3.62206749]
[1772108301161,2.00946027,87.424,87.39,3.62206749]
[1772108302163,2.00946027,87.431,87.41,3.62206749]
[1772108302358,2.00946027,87.431,87.42,3.62206749]
[1772108302569,104.1,87.47,87.42,3.62206749]
[1772108302570,2.00946027,87.487,87.42,7.24413498]
[1772108302861,2.00946027,87.479,87.4,3.62206749]
[1772108303162,45.71422714,87.501,87.43,3.62206749]
[1772108303163,5.36086188,87.467,87.43,3.62206749]
[1772108303364,2.00946027,87.466,87.44,3.62206749]
[1772108303579,5.36086188,87.457,87.42,3.62206749]
[1772108303758,2.00946027,87.456,87.42,3.62206749]
[1772108306260,5.36086188,87.457,87.404,40.04393391]
[1772108306261,2.00946027,87.454,87.43,3.62206749]
[1772108307965,2.00946027,87.454,87.404,11.44112397]
[1772108308282,2.00946027,87.452,87.43,3.62206749]
[1772108309169,2.00946027,87.452,87.42,3.62206749]
[1772108310484,2.00946027,87.45,87.42,3.62206749]
[1772108310879,2.00946027,87.45,87.401,40.04530839]
[1772108311093,2.00946027,87.45,87.43,3.62206749]
[1772108311276,2.00946027,87.45,87.42,3.62206749]
[1772108311586,2.00946027,87.449,87.41,3.62206749]
[1772108311883,2.00946027,87.447,87.41,3.62206749]
[1772108313865,2.00946027,87.445,87.41,3.62206749]
[1772108314565,2.00946027,87.445,87.41,15.06239662]
[1772108315786,2.00946027,87.443,87.41,15.06239662]
[1772108316977,2.00946027,87.443,87.42,3.62206749]
[1772108319572,28.58574162,87.457,87.42,3.62206749]
[1772108319573,2.00946027,87.441,87.42,3.62206749]
[1772108320176,2.00946027,87.441,87.41,3.62206749]
[1772108320484,3.62206749,87.45,87.41,3.62206749]
[1772108320485,2.00946027,87.439,87.41,3.62206749]
[1772108322592,2.00946027,87.439,87.411,11.44020775]
[1772108323391,2.00946027,87.437,87.396,11.44217126]
[1772108323600,2.00946027,87.437,87.4,3.62206749]
[1772108323775,2.00946027,87.437,87.39,3.62206749]
[1772108324094,2.00946027,87.429,87.4,3.62206749]
[1772108324472,11.43762983,87.431,87.41,3.62206749]
[1772108324690,2.00946027,87.437,87.41,3.62206749]
[1772108325110,11.43600476,87.444,87.42,3.62206749]
[1772108325278,11.43530729,87.449,87.43,3.62206749]
[1772108325599,13.44476756,87.449,87.43,3.62206749]
[1772108325803,11.43530729,87.449,87.43,3.62206749]
[1772108325990,2.00946027,87.448,87.43,3.62206749]
[1772108326293,2.00946027,87.448,87.42,3.62206749]
[1772108326499,2.00946027,87.446,87.411,11.44020556]
[1772108328079,2.00946027,87.446,87.42,3.62206749]
[1772108328900,2.00946027,87.444,87.41,3.62206749]
[1772108329372,11.43575962,87.445,87.43,3.62206749]
[1772108330181,11.43575962,87.445,87.42,3.62206749]
[1772108330889,13.44521989,87.445,87.42,3.62206749]
[1772108331396,2.00946027,87.444,87.42,3.62206749]
[1772108333587,2.00946027,87.442,87.42,3.62206749]
[1772108335685,13.44574302,87.441,87.42,3.62206749]
[1772108336000,2.00946027,87.441,87.42,3.62206749]
[1772108337603,2.00946027,87.441,87.421,11.43889912]
[1772108337904,2.00946027,87.447,87.421,11.43889912]
[1772108339101,2.00946027,87.447,87.42,3.62206749]
[1772108339804,2.00946027,87.445,87.42,3.62206749]
[1772108340904,2.00946027,87.443,87.42,3.62206749]
[1772108341686,2.00946027,87.443,87.4,3.62206749]
[1772108341888,2.00946027,87.443,74.846,0.78409091]
[1772108341889,2.00946027,87.443,87.379,3.69383402]
[1772108342196,2.00946027,87.429,87.39,3.62206749]
[1772108342901,2.00946027,87.429,87.391,11.44282592]
[1772108342902,2.00946027,87.427,87.391,11.44282592]
[1772108343285,2.00946027,87.427,87.39,3.62206749]
[1772108343808,2.00946027,87.409,87.37,3.62206749]
[1772108344011,2.00946027,87.409,87.371,11.44544528]
[1772108344217,2.00946027,87.409,87.38,3.62206749]
[1772108344915,2.00946027,87.427,87.39,3.62206749]
[1772108345112,2.00946027,87.426,87.39,3.62206749]
[1772108346211,2.00946027,87.426,87.4,3.62206749]
[1772108346620,2.00946027,87.426,87.41,3.62206749]
[1772108350220,2.00946027,87.431,87.41,3.62206749]
[1772108350618,2.00946027,87.431,87.407,11.44073013]
[1772108350917,2.00946027,87.431,87.4,3.62206749]
[1772108351924,2.00946027,87.429,87.4,3.62206749]
[1772108352413,2.00946027,87.429,87.41,3.62206749]
[1772108353727,2.00946027,87.429,87.4,3.62206749]
[1772108354019,2.00946027,87.427,87.4,3.62206749]
[1772108356322,2.00946027,87.425,87.4,3.62206749]
[1772108357722,2.00946027,87.425,87.38,28.61046745]
[1772108357723,2.00946027,87.425,87.39,3.62206749]
[1772108357923,2.00946027,87.419,87.38,3.62206749]
[1772108358224,2.00946027,87.419,87.371,11.44544528]
[1772108358225,2.00946027,87.419,87.4,3.62206749]
[1772108358913,13.44875194,87.418,87.4,3.62206749]
[1772108359110,13.44875194,87.418,87.395,11.44221468]
[1772108359315,2.00946027,87.417,87.395,11.44221468]
[1772108360431,11.43955339,87.416,87.391,11.44277393]
[1772108360618,13.44901366,87.416,87.391,11.44277393]
[1772108360819,2.00946027,87.416,87.391,11.44277393]
[1772108361118,13.44901366,87.416,87.391,11.44277393]
[1772108362333,2.00946027,87.415,87.391,11.44277393]
[1772108364931,11.43981513,87.414,87.391,11.44277393]
[1772108365310,2.00946027,87.413,87.39,3.62298285]
[1772108365929,2.00946027,87.411,87.39,3.62298285]
[1772108372930,2.00946027,87.418,87.4,3.62298285]
[1772108373642,2.00946027,87.418,87.39,3.62298285]
[1772108374227,2.00946027,87.418,87.382,11.44393797]
[1772108376237,2.00946027,87.416,87.382,11.44393797]
[1772108378552,11.43942253,87.417,87.36,3.62298285]
[1772108378553,2.00946027,87.414,87.39,3.62298285]
[1772108380828,2.00946027,87.412,87.39,3.62298285]
[1772108382653,2.00946027,87.412,87.363,3.69383402]
[1772108382654,2.00946027,87.443,87.4,7.2459657]
[1772108382840,3.62298285,87.46,87.4,7.2459657]
[1772108382841,2.00946027,87.441,87.42,3.62298285]
[1772108383640,2.00946027,87.441,87.41,3.62298285]
[1772108383944,2.00946027,87.439,87.4,3.62298285]
[1772108385388,2.00946027,87.437,87.4,3.62298285]
[1772108386752,3.62298285,87.44,87.4,3.62298285]
[1772108386753,2.00946027,87.435,87.4,3.62298285]
[1772108387455,40.02927855,87.436,87.39,3.62298285]
[1772108387456,2.00946027,87.429,87.39,3.62298285]
[1772108388832,2.00946027,87.427,87.39,3.62298285]
[1772108391355,40.03294138,87.428,87.4,3.62298285]
[1772108391356,2.00946027,87.425,87.4,3.62298285]
[1772108392898,2.00946027,87.425,87.39,3.62298285]
[1772108393560,2.00946027,87.423,87.39,3.62298285]
[1772108395563,2.00946027,87.421,87.4,3.62298285]
[1772108397064,2.00946027,87.421,87.41,3.62298285]
[1772108398051,2.00946027,87.419,87.41,3.62298285]
[1772108401457,40.02332787,87.449,87.42,3.62298285]
[1772108402153,5.36086188,87.448,87.41,3.62298285]
[1772108402876,1.85063322,87.439,87.4,3.62298285]
[1772108404171,1.85063322,87.437,87.4,3.62298285]
[1772108406374,1.85063322,87.435,87.4,3.62298285]
[1772108407054,1.85063322,87.435,87.4,5.43786574]
[1772108407253,1.85063322,87.435,87.381,28.61010976]
[1772108407254,1.85063322,87.435,87.41,3.62298285]
[1772108408381,1.85063322,87.433,87.41,3.62298285]
[1772108410369,1.85063322,87.431,87.41,3.62298285]
[1772108410965,40.03110988,87.432,87.411,1.81488289]
[1772108411554,11.43745996,87.432,87.411,1.81488289]
[1772108412475,13.28809318,87.432,87.411,1.81488289]
[1772108412775,1.85063322,87.431,87.411,1.81488289]
[1772108413680,1.85063322,87.429,87.411,1.81488289]
[1772108415179,11.4377216,87.43,87.411,1.81488289]
[1772108418282,11.43654433,87.439,87.421,1.81488289]
[1772108418859,1.85063322,87.438,87.421,1.81488289]
[1772108419481,11.43680592,87.437,87.421,1.81488289]
[1772108425000,1.85063322,87.443,87.421,1.81488289]
[1772108427990,1.91160079,87.441,87.421,1.81488289]
[1772108429592,1.91160079,87.439,87.421,1.81488289]
[1772108432096,1.91160079,87.444,87.421,1.81488289]
[1772108434510,1.91160079,87.442,87.406,1.88299478]
[1772108434692,1.91160079,87.442,87.421,1.88299478]
[1772108435504,11.43628275,87.441,87.421,1.88299478]
[1772108435688,1.79616537,87.44,87.421,1.88299478]
[1772108437604,28.58712879,87.452,87.421,1.88299478]
[1772108437605,11.43654433,87.439,87.421,1.88299478]
[1772108439106,11.43604249,87.443,87.43,3.62127093]
[1772108439312,1.79616537,87.46,87.431,1.81015443]
[1772108439610,1.79616537,87.466,87.441,1.81015443]
[1772108440005,1.79616537,87.449,87.407,1.81015443]
[1772108440308,1.79616537,87.449,87.415,1.81015443]
[1772108441292,3.62127093,87.44,87.41,1.81015443]
[1772108441497,1.79616537,87.439,87.411,1.81015443]
[1772108441692,1.79616537,87.437,87.411,1.81015443]
[1772108442797,1.79616537,87.437,87.42,3.62127093]
[1772108443817,1.79616537,87.437,87.42,5.43142536]
[1772108446600,1.79616537,87.442,87.421,1.81015443]
[1772108447419,9.60923561,87.443,87.43,3.62127093]
[1772108447600,11.43262184,87.469,87.431,1.81015443]
[1772108447803,11.43262184,87.469,87.441,1.81015443]
[1772108448732,16.79217682,87.479,87.441,1.81015443]
[1772108449022,3.62127093,87.47,87.432,1.81015443]
[1772108449200,3.62127093,87.46,87.431,1.81015443]
[1772108449407,1.79616537,87.469,87.44,3.62127093]
[1772108449606,1.79616537,87.469,87.441,1.81015443]
[1772108450605,1.79616537,87.467,87.441,1.81015443]
[1772108451818,1.79616537,87.467,87.431,1.81015443]
[1772108452027,1.79616537,87.467,87.441,1.81015443]
[1772108452214,1.79616537,87.467,87.451,1.81015443]
[1772108452824,1.79616537,87.465,87.45,3.62127093]
[1772108454502,1.79616537,87.465,87.446,1.81015443]
[1772108454503,1.79616537,87.463,87.446,1.81015443]
[1772108456128,11.43353685,87.462,87.446,1.81015443]
[1772108456628,13.22273587,87.462,87.446,1.81015443]
[1772108459019,1.78919902,87.467,87.446,1.81015443]
[1772108461827,1.78919902,87.465,87.446,1.81015443]
[1772108462729,1.78919902,87.481,87.461,1.83002518]
[1772108462931,1.78919902,87.486,87.461,1.83002518]
[1772108463123,1.78919902,87.479,87.441,1.83002518]
[1772108463516,1.78919902,87.469,87.43,3.62127093]
[1772108463837,1.78919902,87.457,87.42,3.62127093]
[1772108465507,1.78919902,87.455,87.431,1.82802354]
[1772108466634,1.78919902,87.459,87.441,1.82695272]
[1772108467037,1.78919902,87.463,87.441,1.82695272]
[1772108467834,11.43353685,87.462,87.441,1.82695272]
[1772108468221,1.78919902,87.465,87.441,1.82695272]
[1772108468819,11.4332754,87.464,87.441,1.82695272]
[1772108469238,1.78919902,87.463,87.441,1.82695272]
[1772108470436,11.43353685,87.462,87.441,1.82695272]
[1772108470932,1.78919902,87.482,87.451,1.82368445]
[1772108471133,11.43040029,87.486,87.461,1.82311275]
[1772108471323,1.78919902,87.479,87.45,3.62127093]
[1772108471526,1.78919902,87.479,87.451,1.82311275]
[1772108471837,40.00640102,87.486,87.461,1.82311275]
[1772108472232,13.21959931,87.486,87.461,1.82311275]
[1772108472738,13.21959931,87.486,87.44,3.62127093]
[1772108472739,16.24749626,87.489,87.471,1.82254763]
[1772108473141,29.46677018,87.489,87.471,1.82254763]
[1772108473633,27.67757116,87.489,87.471,1.82254763]
[1772108473838,16.24749626,87.489,87.471,1.82254763]
[1772108478642,12.59903492,87.489,87.48,3.62127093]
[1772108479249,0.2687409,87.505,87.48,3.62127093]
[1772108479549,0.2687409,87.505,87.49,3.62127093]
[1772108483333,0.2687409,87.505,87.49,3.61518669]
[1772108484443,11.428049,87.504,87.49,3.61518669]
[1772108485550,1.93087812,87.503,87.48,3.61518669]
[1772108487351,13.35918833,87.502,87.48,3.61518669]
[1772108487655,1.93087812,87.501,87.48,3.61518669]
[1772108488536,11.42831021,87.502,87.48,3.61518669]
[1772108488537,0.2687409,87.505,87.48,15.04633429]
[1772108488736,0.2687409,87.505,87.49,3.61518669]
[1772108489959,11.69673686,87.505,87.49,3.61518669]
[1772108492159,0.2687409,87.505,87.491,11.42974705]
[1772108492655,0.2687409,87.505,87.49,3.61518669]
[1772108493556,0.2687409,87.505,87.23,0.2]
[1772108493557,1.93087812,87.504,87.48,3.61518669]
[1772108494256,1.93087812,87.502,87.48,3.61518669]
[1772108494633,1.93087812,87.502,87.48,15.04627074]
[1772108495652,0.2687409,87.505,87.49,3.61518669]
[1772108496035,0.1,87.52,87.49,3.61518669]
[1772108496240,1.93087812,87.545,87.511,11.42713487]
[1772108496444,1.93087812,87.567,87.53,3.61518669]
[1772108497058,1.93087812,87.566,87.53,3.61518669]
[1772108497243,1.93087812,87.549,87.487,3.69383402]
[1772108497551,1.93087812,87.529,87.5,3.61518669]
[1772108497764,1.93087812,87.529,87.49,3.61518669]
[1772108498470,1.93087812,87.527,87.5,3.61518669]
[1772108500650,1.93087812,87.525,87.5,3.61518669]
[1772108501244,1.93087812,87.525,87.49,3.61518669]
[1772108502751,1.93087812,87.523,87.49,3.61518669]
[1772108503144,1.93087812,87.523,87.5,3.61518669]
[1772108505349,11.42569868,87.522,87.5,3.61518669]
[1772108505562,1.93087812,87.521,87.5,3.61518669]
[1772108508761,11.42595978,87.52,87.5,3.61518669]
[1772108509060,13.3568379,87.52,87.5,3.61518669]
[1772108509365,13.3568379,87.52,87.49,3.61518669]
[1772108509366,1.93087812,87.519,87.49,3.61518669]
[1772108510063,1.93087812,87.519,87.5,3.61518669]
[1772108510465,1.93087812,87.517,87.5,3.61518669]
[1772108511465,11.42648201,87.516,87.5,3.61518669]
[1772108511647,1.93087812,87.515,87.5,3.61518669]
[1772108512557,1.93087812,87.538,87.51,3.61518669]
[1772108514356,1.93087812,87.536,87.51,3.61518669]
[1772108515456,1.93087812,87.536,87.5,3.61518669]
[1772108518182,1.93087812,87.534,87.5,15.04375811]
[1772108519069,1.93087812,87.534,87.51,3.61518669]
[1772108519464,13.35376785,87.544,87.52,3.61518669]
[1772108519665,13.35376785,87.544,87.53,3.61518669]
[1772108520280,1.93087812,87.543,87.53,3.61518669]
[1772108520983,1.93087812,87.541,87.52,3.61518669]
[1772108521481,11.42308834,87.542,87.53,3.61518669]
[1772108521859,1.93087812,87.541,87.52,3.61518669]
[1772108522458,1.93087812,87.539,87.52,3.61518669]
[1772108525683,1.93087812,87.539,87.508,11.42744003]
[1772108525684,1.93087812,87.537,87.51,3.61518669]
[1772108526084,1.93087812,87.537,87.493,28.57353961]
[1772108526386,1.93087812,87.537,87.51,3.61518669]
[1772108527582,1.93087812,87.535,87.51,3.61518669]
[1772108529188,1.93087812,87.533,87.51,3.61518669]
[1772108531386,13.35527148,87.532,87.51,3.61518669]
[1772108532272,1.93087812,87.531,87.51,3.61518669]
[1772108533291,1.93087812,87.545,87.52,3.61518669]
[1772108533902,1.93087812,87.545,87.51,3.61518669]
[1772108535397,1.93087812,87.543,87.51,3.61518669]
[1772108536793,39.9808092,87.542,87.51,3.61518669]
[1772108537093,1.93087812,87.541,87.51,3.61518669]
[1772108537294,1.93087812,87.541,87.511,11.42713487]
[1772108537878,1.93087812,87.55,87.53,3.61518669]
[1772108538280,1.93087812,87.55,87.511,39.99497205]
[1772108538473,1.93087812,87.55,87.53,3.61518669]
[1772108538677,3.61518669,87.57,87.54,3.61518669]
[1772108538678,1.93087812,87.557,87.54,3.61518669]
[1772108538894,1.93087812,87.555,87.53,3.61518669]
[1772108540097,11.4198271,87.567,87.531,11.42452388]
[1772108540403,11.4198271,87.567,87.55,3.61518669]
[1772108540900,1.93087812,87.566,87.55,3.61518669]
[1772108541201,1.93087812,87.564,87.55,3.61518669]
[1772108541398,1.93087812,87.564,87.54,3.61518669]
[1772108541582,1.93087812,87.564,87.55,3.61518669]
[1772108542489,1.93087812,87.571,87.54,3.61518669]